Cogmind - Beta 16 @@@ ROGUE MODE // 2025.11.27 @ 19:23:07 Player: Red Box Result: Destroyed by LN-6Z9(R) with Subdweller Laser Performance ------------- Evolutions (0) 0 Regions Visited (3) 600 Robots Destroyed (40) 200 Value Destroyed (755) 755 Prototype IDs (5) 100 Alien Tech Used (0) 0 Bonus (0) 0 TOTAL SCORE: 1655 Bonus ------- None Cogmind --------- Core Integrity 0/250 Matter 147/300 Energy 230/250 System Corruption 0% Temperature Cool (6) Movement Treading (320) Ox2 Location -10/Subcaves Parts ------- > --- POWER (1) -------- Ion Engine > --- PROPULSION (2) --- Light Treads Compact Wheel > --- UTILITY (2) ------ High-capacity Storage Unit Light Armor Plating > --- WEAPON (2) ------- Heavy Particle Cannon Light Cannon > --- INVENTORY (20) --- Light Treads Spiked Treads Makeshift Leg Thermal Generator Improved Heat Sink Large Battery (200) Experimental Sensor Array Improved Terrain Scanner Advanced Targeting Computer Light Armor Plating Improved Light Armor Plating Makeshift Thermal Plating Insulated Plating Hardlight Generator Improved Trap Extractor (2/6 Explosive) Ion Cannon Ion Cannon Rocket Launcher Hammer Peak State ------------ > --- POWER ------------ Ion Engine > --- PROPULSION ------- Aluminum Leg Aluminum Leg > --- UTILITY ---------- High-capacity Storage Unit Experimental Sensor Array > --- WEAPON ----------- Light Cannon Light Cannon > --- INVENTORY -------- Light Treads Light Treads Compact Wheel Thermal Generator Improved Heat Sink High-capacity Storage Unit Large Battery Advanced Weight Redist. System Improved Terrain Scanner Advanced Targeting Computer Light Armor Plating Light Armor Plating Light Armor Plating Light Armor Plating Improved Trap Extractor Ion Cannon Light Cannon Light Cannon Grenade Launcher Hammer [Rating: 18] Favorites ----------- Power Ion Engine Engine Ion Engine Propulsion Aluminum Leg Treads Light Treads Leg Aluminum Leg Wheel Compact Wheel Utility High-capacity Storage Unit Device Improved Terrain Scanner Storage High-capacity Storage Unit Protection Light Armor Plating Weapon Light Cannon Energy Gun Medium Laser Ballistic Gun Assault Rifle Ballistic Cannon Light Cannon Launcher Grenade Launcher Special Weapon Mining Laser Impact Weapon Hammer Special Melee Weapon Datajack Build | -11 -10 -10 -10 ------- Run | Yrd Mat Min Sub Slots Evolved . | . . . . Power . | . . . . Propulsion . | . . . . Utility . | . . . . Weapon . | . . . . Parts Attached 38 | 7 14 11 6 Power 3 | 1 1 1 . Engine 3 | 1 1 1 . Core . | . . . . Reactor . | . . . . Propulsion 7 | 2 3 . 2 Treads 1 | . . . 1 Leg 5 | 2 3 . . Wheel 1 | . . . 1 Hover . | . . . . Flight . | . . . . Utility 12 | 2 3 6 1 Device 4 | 1 . 3 . Storage 3 | 1 1 1 . Processor . | . . . . Hackware . | . . . . Protection 5 | . 2 2 1 Artifact . | . . . . Weapon 16 | 2 7 4 3 Energy Gun 2 | 2 . . . Energy Cannon 1 | . . . 1 Ballistic Gun 1 | . 1 . . Ballistic Cannon 7 | . 3 4 . Launcher 2 | . 1 . 1 Special Weapon 1 | . 1 . . Impact Weapon 1 | . . . 1 Slashing Weapon . | . . . . Piercing Weapon . | . . . . Special Melee Weapon 1 | . 1 . . Unidentified Prototypes 1 | . . 1 . Parts Lost 4 | . 1 2 1 Power 2 | . 1 1 . Propulsion . | . . . . Utility 1 | . . 1 . Weapon 1 | . . . 1 Highest Loss Streak 2 | . 1 2 1 To Critical Strikes . | . . . . Average Backups 15 | 3 11 19 19 Power . | . . . . Propulsion 3 | 2 3 3 2 Utility 7 | . 3 10 12 Weapon 4 | . 4 5 5 Tool/Special . | . . . . Unused Backups 21 | . 2 4 15 Power 2 | . 1 . 1 Propulsion 4 | . 1 . 3 Utility 10 | . . 1 9 Weapon 5 | . . 3 2 Tool/Special . | . . . . Average Slot Usage (%) 99 | . 99 99 100 Engine 13 | . 13 13 14 Treads 1 | . . . 11 Leg 24 | . 27 28 6 Wheel 1 | . . . 11 Device 6 | . 7 3 7 Storage 14 | . 14 14 14 Protection 7 | . 6 10 6 Energy Gun 3 | . 6 . . Ballistic Cannon 23 | . 19 27 26 Peak Build Rating 18 | 9 9 18 14 Average Rating 10 | 5 8 11 13 On Entrance 7 | . 9 9 12 Avg Prop Armor Cover (%) 8 | . . . 8 Naked Turns . | . . . . Heaviest Build 54 | 12 52 54 54 Greatest Support 29 | 20 20 29 20 Greatest Overweight (x) 3 | 2 2 2 3 Average Overweight (x) 1 | . . 1 2 Largest Inventory Capacity 20 | 8 20 20 20 Average Capacity 16 | 7 13 20 20 Most Carried 20 | 7 20 20 20 Average Carried 15 | 3 11 19 19 Final Capacity 20 | 8 20 20 20 Final Carried 20 | 7 20 20 19 Class Distribution -------------------- 98% | Mutant Dominant Class ---------------- Mutant | -10/Materials Mutant | -10/Mines Mutant | -10/Subcaves Resources | -11 -10 -10 -10 ----------- Run | Yrd Mat Min Sub Matter Collected 1137 | 270 417 363 87 Remotely . | . . . . Salvage Created 873 | 86 599 148 40 Parts 73 | 7 44 13 9 Haulers Intercepted 2 | . 2 . . Recyclers Shooed 1 | . . 1 . Parts Field Recycled . | . . . . Retrieved Matter . | . . . . Parts Self-Destructed 7 | . . . 7 Prevented . | . . . . Parts Restored . | . . . . Kills | -11 -10 -10 -10 ------- Run | Yrd Mat Min Sub Combat Hostiles Destroyed 31 | . 17 9 5 Guns 9 | . 9 . . Cannons 13 | . 3 6 4 AOE 9 | . 5 3 1 Classes Destroyed 10 | 2 5 2 1 Worker 3 | . 3 . . Tunneler 1 | 1 . . . Hauler 2 | . 2 . . Recycler 1 | 1 . . . Operator 1 | . . 1 . Watcher 3 | . 3 . . Swarmer 15 | . 9 3 3 Grunt 12 | . 8 4 . Subdweller 2 | . . . 2 Assembled 2 | . . 2 . Best Kill Streak 5 | 1 4 5 3 Combat Bots Only 5 | . 4 5 3 Max Kills in Single Turn 2 | 1 2 2 1 Gunslinging . | . . . . Exploded 2 | . 2 2 1 Melee . | . . . . Uniques/NPCs Destroyed . | . . . . Combat | -11 -10 -10 -10 -------- Run | Yrd Mat Min Sub Hostile Shots Fired 136 | . 59 46 31 Missed 27 | . 12 9 6 Hits 109 | . 47 37 25 Projectile 109 | . 47 37 25 Critical Strikes 3 | . . 2 1 Damage Taken 1363 | . 488 472 403 Core 261 | . 125 12 124 Absorbed by Shields . | . . . . Regen/Repaired (Parts) 26 | . 26 . . Core Remaining (%) 100 | 100 . . . Volleys Fired 100 | 4 58 22 16 Largest 2 | 2 2 2 2 Hottest 100 | 90 100 60 63 Shots Fired 193 | 8 109 44 32 Gun 86 | 8 78 . . Cannon 100 | . 27 42 31 Launcher 6 | . 3 2 1 Special 1 | . 1 . . Kinetic 108 | . 35 42 31 Thermal 79 | 8 71 . . Explosive 6 | . 3 2 1 Electromagnetic . | . . . . Robot Hit Streak 14 | 3 14 13 8 Robot Miss Streak 5 | 1 5 3 2 Penetration Max . | . . . . Secondary Targets 2 | . 2 . . Max Gunslinging Chain 1 | . 1 . . Shots Hit Robots 119 | 5 64 28 22 Core Hits 58 | 3 34 12 9 Critical Kills . | . . . . Critical Parts Destroyed 1 | . 1 . . Critical Strikes 8 | . 4 3 1 Burn 3 | . 3 . . Destroy 1 | . 1 . . Blast 4 | . . 3 1 Melee Attacks 13 | . 2 . 11 Impact 11 | . . . 11 Slashing . | . . . . Piercing . | . . . . Sneak Attacks 2 | . 2 . . Combat Hostiles . | . . . . Follow-up Attacks . | . . . . Damage Inflicted 2314 | 56 1137 660 461 Guns 670 | 56 614 . . Cannons 1162 | . 246 524 392 Explosions 478 | . 273 136 69 Melee . | . . . . Ramming 4 | . 4 . . Kinetic 1224 | . 308 524 392 Thermal 608 | 56 552 . . Explosive 478 | . 273 136 69 Electromagnetic . | . . . . Impact . | . . . . Slashing . | . . . . Piercing . | . . . . Highest Corruption . | . . . . Average Corruption . | . . . . Corruption Purged . | . . . . Corruption Blocked . | . . . . Overload Shots . | . . . . Overflow Damage 12 | . 8 3 1 Projectiles 4 | . . 3 1 Explosions 8 | . 8 . . Melee . | . . . . Knockbacks 12 | . 1 9 2 Impact . | . . . . Kinetic 12 | . 1 9 2 Secondary . | . . . . Self-Inflicted Damage . | . . . . Shots . | . . . . Rammed . | . . . . Targets Rammed 1 | . 1 . . Kicked 1 | . 1 . . Crushed . | . . . . Highest Temperature 349 | 60 349 123 . Average Temperature 92 | 31 113 47 . Received Heat Transfer 462 | . 186 234 42 Effects 6 | . 6 . . Energy Bleed 2 | . 2 . . Interference 3 | . 3 . . Damage (minor) 1 | . 1 . . Siege Activations . | . . . . Martial Activations . | . . . . Shielding Activations . | . . . . Robots Disrupted . | . . . . Combat Hostiles . | . . . . Robots Corrupted . | . . . . Combat Hostiles . | . . . . Parts Fried . | . . . . Impact Corruptions . | . . . . Robots Melted . | . . . . Combat Hostiles . | . . . . Parts Melted 6 | . 6 . . Heat Transferred 1845 | 149 1696 . . Parts Sabotaged . | . . . . Parts Stolen . | . . . . Parts Stripped . | . . . . Power Chain Reactions . | . . . . Alert | -11 -10 -10 -10 ------- Run | Yrd Mat Min Sub Maximum Alert Level 1 | . . 1 . Low Security (%) 99 | 100 100 99 . Level 1 . | . . . . Level 2 . | . . . . Level 3 . | . . . . Level 4 . | . . . . Level 5 . | . . . . High Security . | . . . . Max Security . | . . . . Peak Influence 200 | 5 174 200 . Initial 61 | . . 61 . Average 37 | 1 50 21 . Influence Increases 955 | 10 686 189 70 Destroy 0b10 Robot/C 540 | . 340 140 60 Destroy 0b10 Robot/NC 50 | 10 40 . . Destroy Leader 110 | . 70 30 10 Trap Triggered on 0b10 20 | . 20 . . Successful Hack 22 | . 22 . . Select Force Hacks 60 | . 60 . . Disable Machine 15 | . 15 . . Destroy Structure 63 | . 44 19 . Lose Combat Pursuer 75 | . 75 . . Influence Decreases 955 | 10 528 347 70 Entered New Map 97 | . . 97 . Time Decay 828 | 10 518 230 70 Lost Part 30 | . 10 20 . Squads Dispatched 3 | . 2 1 . Investigation 3 | . 2 1 . Extermination . | . . . . Reinforcement . | . . . . Assault . | . . . . Garrison . | . . . . Intercept . | . . . . Searches Triggered . | . . . . Construction Impeded . | . . . . Haulers Reinforced . | . . . . Active Scanning Responses . | . . . . Cargo Convoy Interrupts . | . . . . Stealth | -11 -10 -10 -10 --------- Run | Yrd Mat Min Sub Distress Signals 2 | . 2 . . Communications Jammed . | . . . . Distress Signals . | . . . . Times Spotted 42 | . 28 8 6 Peak Tracking Total 5 | . 5 4 3 Tactical Retreats 3 | . 3 . . Traps | -11 -10 -10 -10 ------- Run | Yrd Mat Min Sub Traps Triggered . | . . . . Indirectly . | . . . . Trap Hack Attempts 127 | . 88 39 . Triggered . | . . . . Disarmed 1 | . 1 . . Reprogrammed 10 | . 7 3 . Reused 2 | . 2 . . Traps Extracted 3 | . . 3 . Installed . | . . . . Triggered 2 | . 2 . . Most Traps Carried 2 | . . 2 2 Machines | -11 -10 -10 -10 ---------- Run | Yrd Mat Min Sub Machines Disabled 1 | . 1 . . Max in Single Turn 1 | . 1 . . Machines Repaired . | . . . . Machines Dismantled . | . . . . Machines Sabotaged . | . . . . Overloaded Fab Kills . | . . . . Hacking | -11 -10 -10 -10 --------- Run | Yrd Mat Min Sub Machines Accessed 13 | . 11 2 . Terminals 8 | . 8 . . Fabricators . | . . . . Repair Stations 1 | . 1 . . Recycling Units 2 | . 2 . . Scanalyzers . | . . . . Garrison Access . | . . . . Total Hacks 44 | . 42 2 . Successful 33 | . 31 2 . Failed 10 | . 10 . . Catastrophic . | . . . . Database Lockouts 1 | . 1 . . Manual 30 | . 30 . . Terminals 30 | . 30 . . Fabricators . | . . . . Repair Stations 6 | . 6 . . Recycling Units 6 | . 6 . . Scanalyzers . | . . . . Garrison Access . | . . . . Terminal Hacks 7 | . 5 2 . Robot Analysis 2 | . 2 . . Prototype ID Bank 2 | . 2 . . Open Door 2 | . . 2 . Terminal Index 1 | . 1 . . Fabricator Hacks . | . . . . Repair Station Hacks 6 | . 6 . . Scan Component 3 | . 3 . . Repair 3 | . 3 . . Recycling Unit Hacks 1 | . 1 . . Retrieve Components 1 | . 1 . . Scanalyzer . | . . . . Garrison Access Hacks . | . . . . Unauthorized Hacks 19 | . 19 . . Terminals 16 | . 16 . . Track 2 | . 2 . . Assimilate 4 | . 4 . . Botnet 4 | . 4 . . Operators 1 | . 1 . . Skim 5 | . 5 . . Fabricators . | . . . . Repair Stations . | . . . . Recycling Units 3 | . 3 . . Mask 1 | . 1 . . Tunnel 2 | . 2 . . Scanalyzers . | . . . . Garrison Access . | . . . . Data Cores Recovered . | . . . . Used . | . . . . Hacking Detections 11 | . 11 . . Full Trace Events . | . . . . Feedback Events . | . . . . Feedback Blocked . | . . . . Robot Schematics Acquired . | . . . . Robots Built . | . . . . Authchips . | . . . . Time . | . . . . Total Robot Build Rating . | . . . . Part Schematics Acquired . | . . . . Parts Built . | . . . . Authchips . | . . . . Time . | . . . . Total Part Build Rating . | . . . . Part Studies Acquired . | . . . . Parts Repaired 3 | . 3 . . Time 90 | . 90 . . Parts Recycled . | . . . . Recycled Matter . | . . . . Retrieved Matter . | . . . . Retrieved Components 2 | . 2 . . Parts Scanalyzed . | . . . . Part Schematics Acquired . | . . . . Parts Damaged . | . . . . Bothacking | -11 -10 -10 -10 ------------ Run | Yrd Mat Min Sub Used RIF Installer . | . . . . Robots Hacked . | . . . . Non-combat . | . . . . Combat . | . . . . Robot Hacks Applied . | . . . . Relay Couplers Released . | . . . . Fabnet Peak Effective % . | . . . . Robots Rewired . | . . . . Allies Hacked . | . . . . Hacks Repelled . | . . . . Allies | -11 -10 -10 -10 -------- Run | Yrd Mat Min Sub Total Allies 2 | . 2 . . Largest Group 2 | . 2 2 1 Highest-Rated Group 20 | . 20 20 10 Highest-Rated Ally 10 | . 10 10 10 Total Orders 16 | . 8 7 1 STAY 9 | . 5 3 1 ROAM 1 | . . 1 . FOLLOW 6 | . 3 3 . Ally Attacks . | . . . . Total Damage . | . . . . Kills . | . . . . Allies Corrupted . | . . . . Allies Melted . | . . . . Intel | -11 -10 -10 -10 ------- Run | Yrd Mat Min Sub Active Infowar (turns) 2340 | 26 1807 2 505 Sensors 2 | . . 2 . Terrain 2338 | 26 1807 . 505 Robot Analysis Total 2 | . 2 . . Derelict Logs Recovered 1 | . . 1 . Drone Launches . | . . . . Drone Recoveries . | . . . . Exploration | -11 -10 -10 -10 ------------- Run | Yrd Mat Min Sub Turns Passed 6674 | 95 3250 2361 968 Spaces Moved 2736 | 53 1548 912 223 Core 7 | 7 . . . Treads . | . . . . Legs 2559 | 46 1548 912 53 Wheels 170 | . . . 170 Hover . | . . . . Flight . | . . . . Fastest Speed 50 | 50 120 190 145 Average Speed 188 | 124 163 237 172 Slowest Speed 260 | 190 260 260 260 Overloaded Moves . | . . . . Propulsion Burnouts . | . . . . Robots Hopped . | . . . . Potential Cave-ins . | . . . . Cave-ins Triggered . | . . . . Exploration Rate (%) 53 | 4 99 95 17 Regions Visited 3 Branch Regions 2 Pre-discovered Areas 3 | . 2 1 . Known Exits Taken 1 | . . 1 . Unknown Exits Taken 2 | 1 1 . . Scrap Searched . | . . . . Spaces Dug 2 | . 1 . 1 Terrain Destroyed 76 | . 51 20 5 Melee 1 | . . . 1 Projectile 1 | . 1 . . AOE 74 | . 50 20 4 Terrain Rammed . | . . . . Walls Destroyed . | . . . . Machines Disabled . | . . . . Actions | -11 -10 -10 -10 --------- Run | Yrd Mat Min Sub Total 4038 | 70 2152 1063 753 Wait 925 | . 396 47 482 Move 2733 | 52 1547 911 223 Hop . | . . . . Pick Up 46 | 7 20 14 5 Fast Attach 13 | 7 4 2 . Attach 5 | . 1 3 1 Detach . | . . . . Swap 43 | . 22 11 10 Drop 32 | . 13 14 5 Fire 100 | 4 58 22 16 Melee 13 | . 2 . 11 Ram . | . . . . Kick 1 | . 1 . . Crush . | . . . . Escape Stasis . | . . . . Rewire . | . . . . Trap 127 | . 88 39 . Miscellaneous . | . . . . Route ------- -11/Scrapyard -10/Materials (discovered 6 exits: *Mat x3 / *Min x2 / Sub) -10/Mines (discovered 3 exits: *Mat x2 / *Sub) -10/Subcaves (discovered 2 exits: Mat / [Rec]) History --------- Turn | Location | Event 25 | -11/Scrapyard | Discovered new exit (range 14) 96 | -11/Scrapyard | Entered Materials 315 | -10/Materials | Build established: Mutant 805 | -10/Materials | Discovered new exit (range 14) 874 | -10/Materials | Discovered new exit (range 3) 892 | -10/Materials | Discovered new exit (range 14) 896 | -10/Materials | Central database locked down 918 | -10/Materials | Discovered new exit (range 14) 1126 | -10/Materials | Learned 4 Subcaves zone layouts 1171 | -10/Materials | Identified exit to Subcaves 1171 | -10/Materials | Identified exit to Materials 1171 | -10/Materials | Learned location of 1 exit from Materials 1231 | -10/Materials | Learned location of 1 exit from Recycling 1267 | -10/Materials | Learned 4 Recycling zone layouts 2299 | -10/Materials | Repaired Imp. Terrain Scanner 2326 | -10/Materials | Repaired Grenade Launcher 2353 | -10/Materials | Repaired Aluminum Leg 3346 | -10/Materials | Entered Mines 3346 | -10/Mines | Accompanied by 2 allies 3412 | -10/Mines | Core integrity fell below 50% 3998 | -10/Mines | Met a Derelict who couldn't figure out how to use a Trap Extractor 4312 | -10/Mines | Assembled infested the area 4315 | -10/Mines | Found a damaged Exp. Sensor Array with a note attached 4320 | -10/Mines | Found Prototype Device 4406 | -10/Mines | Identified Exp. Sensor Array 4531 | -10/Mines | Received a Rocket Launcher from a helpful Derelict 4729 | -10/Mines | Met a Derelict shopkeep closing up shop 4780 | -10/Mines | Discovered exit to Subcaves (range 13) 5707 | -10/Mines | Entered Subcaves 5707 | -10/Subcaves | Accompanied by 1 ally 5708 | -10/Subcaves | Identified exit to Materials 5883 | -10/Subcaves | Core integrity fell below 20% 6006 | -10/Subcaves | A swath of the cavern ceiling suddenly collapsed 6067 | -10/Subcaves | Shifting Twisted Machinery released Spk. Treads 6071 | -10/Subcaves | Shifting Twisted Machinery released Mak. Leg 6153 | -10/Subcaves | Shifting Twisted Machinery released Mak. Thermal Plating 6170 | -10/Subcaves | Shifting Twisted Machinery released Barrage Gun 6619 | -10/Subcaves | Discovered new exit (range 10) 6675 | -10/Subcaves | Destroyed by LN-6Z9(R) with Subdweller Laser Last Messages --------------- 05949_ Acquired 17 matter. 05983_ Subatomizers dissect the Sub. Optics. 05991_ Acquired 22 matter. 05992_ Acquired 3 matter. 05994_ Acquired 9 matter. 05998_ Subatomizers dissect the Sub. Optics. A swath of the cavern ceiling suddenly collapses. Spk. Treads falls loose from the Twisted Machinery. Mak. Leg falls loose from the Twisted Machinery. 06081_ Dropped Aluminum Leg. 06083_ Acquired Spk. Treads. 06091_ Dropped Sub. Power Source. 06091_ Acquired Mak. Leg. Mak. Thermal Plating falls loose from the Twisted Machinery. 06166_ Dropped Lgt. Armor Plating. 06168_ Acquired Mak. Thermal Plating. Barrage Gun falls loose from the Twisted Machinery. 06619_ EXIT=FOUND 06673_ Lgt. Cannon destroyed. Map ----- +----------------------------------------------------+ | ?????????????????????????????????????????????????? | | ?????????????????????????????????????????????????? | | ?????????????????????????????????????????????????? | | ?????????????????????????????????????????????????? | | ?????????????????????????????????????????????????? | | ?????????????????????????????????????????????????? | | ?????????????????????????????????????????????????? | | ?????????????????????????????????????????????????? | | ?????????????????????????????????????????????????? | | ?????????????????????????????????????????????????? | | ???????????????????? #??#?? ??????????????????? | | ???????????????????#?##???#? ? ??????????????????? | | ?????????????????" ????#???# ???##???????????????? | | ???????????????#? ?? ??#???##?? #????????????????? | | ?????????????????? ?????####????? ????????????? | | ????????????? ?? ? ""#####? ? ? "??????????????? | | ???????????? ? ????????